lending/lending_fUSD_20250808
["ID","MTS","AMOUNT","RATE_DAILY","PERIOD"]
[377936747,1754615467131,-559.67,0.00025458,2]
[377936748,1754615467142,-691.91,0.00025478,2]
[377936749,1754615467154,-506.53,0.00025478,2]
[377936750,1754615467165,-672.45,0.00025478,2]
[377936751,1754615467181,-407.25,0.00025478,2]
[377936752,1754615467193,-579.75,0.00025479,2]
[377936753,1754615467204,-535.02,0.00025479,2]
[377936754,1754615467216,-2201.94,0.00025479,2]
[377936755,1754615467228,-691.91,0.00025752,2]
[377936756,1754615467239,-506.53,0.00025752,2]
[377936757,1754615467251,-672.45,0.00025752,2]
[377936758,1754615467263,-407.37,0.00025752,2]
[377936759,1754615467273,-579.97967212,0.00025753,2]
[377936760,1754615467285,-535.05,0.00025753,2]
[377936761,1754615467296,-2202.10289239,0.00025753,2]
[377936762,1754615467307,-24440.74531025,0.0002589,2]
[377936763,1754615467319,-692.06093793,0.00026026,2]
[377936764,1754615467331,-506.62585692,0.00026026,2]
[377936765,1754615467342,-672.50720148,0.00026026,2]
[377936766,1754615467353,-154.88364059,0.0002606,2]
[377936767,1754615467365,-1000.0,0.00026267,2]
[377936768,1754615467376,-4000.0,0.0002629,4]
[377936769,1754615467388,-251.4,0.00026676,2]
[377936770,1754615467398,-900.0,0.000269,9]
[377936771,1754615467409,-366.415,0.00027109,7]
[377936772,1754615467423,-13110.9138838,0.00027171,3]
[377936773,1754615467435,-13110.9138838,0.00027387,3]
[377936774,1754615467446,-500.0,0.00027397,2]
[377936775,1754615467457,-500.0,0.00027397,2]
[377936776,1754615467468,-500.0,0.00027397,2]
[377936777,1754615467479,-500.0,0.00027397,2]
[377936778,1754615467489,-500.0,0.00027397,2]
[377936779,1754615467500,-500.0,0.00027397,2]
[377936780,1754615467511,-500.0,0.00027397,2]
[377936781,1754615467523,-500.0,0.00027397,2]
[377936782,1754615467534,-500.0,0.00027397,2]
[377936783,1754615467545,-300.0,0.00027397,2]
[377936784,1754615467557,-457.55740054,0.00028,10]
[377936785,1754615467569,-24440.74531025,0.0002807,2]
[377936786,1754615467580,-181.09,0.00028211,2]
[377936787,1754615467591,-1000.0,0.00028655,2]
[377936788,1754615467607,-4000.0,0.00028924,4]
[377936789,1754615467618,-169.29,0.00028941,2]
[377936790,1754615467630,-842.27441137,0.00029,10]
[377936791,1754615467642,-154.88364059,0.00029278,2]
[377936792,1754615467653,-842.03384774,0.00029385,2]
[377936793,1754615467666,-169.29,0.00029665,2]
[377936794,1754615467683,-549.6225,0.00029849,12]
[377936795,1754615467695,-503.07561602,0.00030081,14]
[377936796,1754615467706,-151.0,0.00030081,14]
[377936797,1754615467717,-2000.0,0.000301,2]
[377936798,1754615467728,-13110.9138838,0.00030127,3]
[377936799,1754615467746,-200.0,0.00030137,5]
[377936800,1754615467757,-500.0,0.00030137,7]
[377936801,1754615467769,-500.0,0.00030137,7]
[377936802,1754615467781,-500.0,0.00030137,7]
[377936803,1754615467792,-500.0,0.00030137,7]
[377936804,1754615467803,-500.0,0.00030137,7]
[377936805,1754615467813,-500.0,0.00030137,7]
[377936806,1754615467825,-500.0,0.00030137,7]
[377936807,1754615467837,-500.0,0.00030137,7]
[377936808,1754615467856,-500.0,0.00030137,7]
[377936809,1754615467868,-500.0,0.00030137,7]
[377936810,1754615467880,-500.0,0.00030137,7]
[377936811,1754615467892,-500.0,0.00030137,7]
[377936812,1754615467903,-810.0,0.00030137,7]
[377936813,1754615467914,-500.0,0.00030137,7]
[377936814,1754615467931,-500.0,0.00030137,7]
[377936815,1754615467942,-500.0,0.00030137,7]
[377936816,1754615467955,-500.0,0.00030137,7]
[377936817,1754615467966,-500.0,0.00030137,7]
[377936818,1754615467978,-500.0,0.00030137,7]
[377936819,1754615467989,-500.0,0.00030137,7]
[377936820,1754615468000,-500.0,0.00030137,7]
[377936821,1754615468011,-500.0,0.00030137,7]
[377936822,1754615468022,-500.0,0.00030137,7]
[377936823,1754615468033,-500.0,0.00030137,7]
[377936824,1754615468045,-500.0,0.00030137,7]
[377936825,1754615468060,-500.0,0.00030137,7]
[377936826,1754615468072,-500.0,0.00030137,7]
[377936827,1754615468083,-500.0,0.00030137,7]
[377936828,1754615468094,-500.0,0.00030137,7]
[377936829,1754615468105,-500.0,0.00030137,7]
[377936830,1754615468115,-500.0,0.00030137,7]
[377936831,1754615468127,-500.0,0.00030137,7]
[377936832,1754615468137,-500.0,0.00030137,7]
[377936833,1754615468149,-500.0,0.00030137,7]
[377936834,1754615468164,-500.0,0.00030137,7]
[377936835,1754615468181,-500.0,0.00030137,7]
[377936836,1754615468193,-500.0,0.00030137,7]
[377936837,1754615468204,-500.0,0.00030137,7]
[377936838,1754615468216,-500.0,0.00030137,7]
[377936839,1754615468227,-500.0,0.00030137,7]
[377936840,1754615468237,-500.0,0.00030137,7]
[377936841,1754615468248,-500.0,0.00030137,7]
[377936842,1754615468259,-500.0,0.00030137,7]
[377936843,1754615468271,-500.0,0.00030137,7]
[377936844,1754615468283,-747.46564699,0.00030137,7]
[377936845,1754615468293,-500.0,0.00030137,7]
[377936846,1754615468304,-552.28084435,0.00030137,7]
[377936847,1754615468316,-500.0,0.00030137,7]
[377936848,1754615468327,-500.0,0.00030137,7]
[377936849,1754615468338,-500.0,0.00030137,7]
[377936850,1754615468350,-500.0,0.00030137,7]
[377936851,1754615468361,-500.0,0.00030137,7]
[377936852,1754615468377,-500.0,0.00030137,7]
[377936853,1754615468388,-500.0,0.00030137,7]
[377936854,1754615468400,-500.0,0.00030137,7]
[377936855,1754615468412,-500.0,0.00030137,7]
[377936856,1754615468426,-500.0,0.00030137,7]
[377936857,1754615468440,-514.35150932,0.00030137,7]
[377936858,1754615468455,-457.55740054,0.000302,7]
[377936859,1754615468466,-211.58213282,0.000302,7]
[377936860,1754615468477,-842.27441137,0.000302,7]
[377936861,1754615468488,-24440.74531025,0.00030249,2]
[377936862,1754615468499,-173.68,0.00030641,2]
[377936863,1754615468512,-2214.66,0.000309,7]
[377936864,1754615468526,-13110.9138838,0.0003099,3]
[377936865,1754615468537,-4000.0,0.00031559,4]
[377936866,1754615468548,-285.376,0.00032005,31]
[377936867,1754615468562,-24440.74531025,0.00032429,2]
[377936868,1754615468574,-154.88364059,0.00032495,2]
[377936869,1754615468585,-732.83,0.00032589,17]
[377936870,1754615468596,-249.3,0.00032703,30]
[377936871,1754615468609,-193.9,0.00032703,30]
[377936872,1754615468620,-250.0,0.00032877,3]
[377936873,1754615468631,-2000.0,0.000329,2]
[377936874,1754615468642,-4462.61,0.000329,14]
[377936875,1754615468654,-2188.92,0.000329,30]
[377936876,1754615468665,-559.67,0.00032903,2]
[377936877,1754615468683,-4821.66,0.00032904,30]
[377936878,1754615468697,-410.814946,0.00033,14]
[377936879,1754615468709,-2500.0,0.00033121,7]
[377936880,1754615468721,-251.4,0.00033165,2]
[377936881,1754615468732,-885.21042645,0.00033171,7]
[377936882,1754615468744,-193.9,0.00033494,30]
[377936883,1754615468755,-500.0,0.00033973,2]
[377936884,1754615468768,-512.0,0.00034114,2]
[377936885,1754615468778,-4000.0,0.00034193,4]
[377936886,1754615468792,-500.0,0.00034247,2]
[377936887,1754615468803,-193.9,0.00034285,30]
[377936888,1754615468814,-338.2,0.000343,9]
[377936889,1754615468825,-500.0,0.00034521,2]
[377936890,1754615468837,-24440.74531025,0.00034609,2]
[377936891,1754615468851,-150.0,0.000347,30]
[377936892,1754615468861,-2188.92,0.000347,30]
[377936893,1754615468873,-500.0,0.00034795,2]
[377936894,1754615468884,-500.0,0.00035069,2]
[377936895,1754615468899,-193.9,0.00035076,60]
[377936896,1754615468910,-4462.61,0.000351,14]
[377936897,1754615468925,-338.2,0.000352,11]
[377936898,1754615468937,-300.0,0.000353,11]
[377936899,1754615468949,-916.0375,0.00035328,22]
[377936900,1754615468962,-500.0,0.00035343,2]
[377936901,1754615468973,-1000.0,0.00035599,2]
[377936902,1754615468984,-1000.0,0.00035599,2]
[377936903,1754615468995,-2000.0,0.000356,2]
[377936904,1754615469007,-306.34185988,0.00035616,2]
[377936905,1754615469018,-500.0,0.00035617,2]
[377936906,1754615469030,-154.88364059,0.00035713,2]
[377936907,1754615469041,-2188.92,0.000358,30]
[377936908,1754615469053,-249.3,0.00035867,60]
[377936909,1754615469064,-193.9,0.00035867,60]
[377936910,1754615469075,-500.0,0.00035891,2]
[377936911,1754615469087,-238.48096716,0.00036,10]
[377936912,1754615469102,-4462.61,0.00036,14]
[377936913,1754615469114,-842.27441137,0.00036,30]
[377936914,1754615469125,-160.0,0.00036,30]
[377936915,1754615469141,-500.0,0.00036055,7]
[377936916,1754615469154,-2444.34,0.000361,7]
[377936917,1754615469166,-170.36487689,0.00036161,120]
[377936918,1754615469183,-500.0,0.00036165,2]
[377936919,1754615469194,-300.0,0.000362,12]
[377936920,1754615469210,-152.81,0.00036291,60]
[377936921,1754615469222,-152.81,0.00036291,60]
[377936922,1754615469234,-300.0,0.000363,13]
[377936923,1754615469245,-29537.36,0.000363,7]
[377936924,1754615469257,-152.82,0.0003633,60]
[377936925,1754615469268,-152.81,0.00036391,60]
[377936926,1754615469279,-152.81,0.00036391,60]
[377936927,1754615469290,-152.82335163,0.0003643,60]
[377936928,1754615469302,-500.0,0.00036439,2]
[377936929,1754615469315,-152.81,0.00036491,60]
[377936930,1754615469326,-152.81,0.00036491,60]
[377936931,1754615469337,-152.81,0.00036591,60]
[377936932,1754615469348,-152.81,0.00036591,60]
[377936933,1754615469360,-2188.92,0.000366,30]
[377936934,1754615469370,-193.9,0.00036658,60]
[377936935,1754615469381,-152.81,0.00036691,60]
[377936936,1754615469392,-152.81,0.00036691,60]
[377936937,1754615469404,-224.85,0.000367,7]
[377936938,1754615469418,-29537.36,0.000367,7]
[377936939,1754615469436,-2444.34,0.000367,7]
[377936940,1754615469448,-500.0,0.00036713,2]
[377936941,1754615469460,-24440.74531025,0.00036788,2]
[377936942,1754615469471,-152.81,0.00036791,60]
[377936943,1754615469483,-4462.61,0.000368,14]
[377936944,1754615469494,-4000.0,0.00036828,4]
[377936945,1754615469506,-1000.0,0.00036849,120]
[377936946,1754615469527,-152.81,0.00036891,60]
[377936947,1754615469538,-631.34,0.000369,120]
[377936948,1754615469549,-500.0,0.00036987,2]
[377936949,1754615469562,-152.81,0.00036991,60]
[377936950,1754615469573,-169.0,0.00037,90]
[377936951,1754615469584,-284.0,0.00037,2]
[377936952,1754615469595,-457.55740054,0.00037,30]
[377936953,1754615469607,-457.55740054,0.00037,7]
[377936954,1754615469618,-211.58213282,0.00037,30]
[377936955,1754615469637,-211.58213282,0.00037,7]
[377936956,1754615469649,-284.18138729,0.00037,2]
[377936957,1754615469660,-300.199999,0.00037,14]
[377936958,1754615469674,-842.27441137,0.00037,7]
[377936959,1754615469687,-152.81,0.00037091,60]
[377936960,1754615469697,-152.81,0.00037191,60]
[377936961,1754615469710,-300.0,0.000372,14]
[377936962,1754615469722,-150.0,0.00037206,120]
[377936963,1754615469740,-500.0,0.00037261,2]
[377936964,1754615469752,-150.0,0.00037278,120]
[377936965,1754615469765,-152.81,0.00037291,60]
[377936966,1754615469776,-300.0,0.000373,14]
[377936967,1754615469787,-150.0,0.0003731,120]
[377936968,1754615469798,-152.81,0.00037391,60]
[377936969,1754615469810,-2188.92,0.000374,30]
[377936970,1754615469822,-193.9,0.00037449,60]
[377936971,1754615469834,-152.81,0.00037491,60]
[377936972,1754615469846,-29537.36,0.000375,7]
[377936973,1754615469859,-2444.34,0.000375,7]
[377936974,1754615469870,-500.0,0.00037535,2]
[377936975,1754615469881,-2412.04,0.00037588,30]
[377936976,1754615469892,-2412.04,0.00037588,30]
[377936977,1754615469903,-2412.04,0.00037588,30]
[377936978,1754615469914,-2412.04,0.00037588,30]
[377936979,1754615469925,-4462.61,0.000376,14]
[377936980,1754615469936,-500.0,0.00037699,7]
[377936981,1754615469949,-1444.0,0.00037753,120]
[377936982,1754615469961,-150.0,0.000378,2]
[377936983,1754615469973,-326.3,0.00037808,60]
[377936984,1754615469984,-500.0,0.00037809,2]
[377936985,1754615469996,-512.0,0.00037812,10]
[377936986,1754615470009,-326.31,0.00037839,80]
[377936987,1754615470020,-2412.04,0.00037862,30]
[377936988,1754615470031,-2412.04,0.00037862,30]
[377936989,1754615470042,-326.31,0.00037869,100]
[377936990,1754615470055,-170.54318752,0.000379,2]
[377936991,1754615470066,-326.31,0.000379,120]
[377936992,1754615470076,-150.0,0.00037925,120]
[377936993,1754615470087,-284.0,0.00038,30]
[377936994,1754615470099,-457.55740054,0.00038,7]
[377936995,1754615470109,-211.58213282,0.00038,120]
[377936996,1754615470120,-284.0,0.00038,30]
[377936997,1754615470131,-300.0,0.00038,15]
[377936998,1754615470142,-842.27441137,0.00038,7]
[377936999,1754615470156,-3517.2959505,0.00038031,10]
[377937000,1754615470168,-150.0,0.00038064,2]
[377937001,1754615470187,-1099.245,0.00038068,27]
[377937002,1754615470198,-500.0,0.00038083,2]
[377937003,1754615470209,-150.0,0.00038088,2]
[377937004,1754615470222,-559.67,0.00038099,2]
[377937005,1754615470235,-29537.36,0.000381,7]
[377937006,1754615470248,-2444.34,0.000381,7]
[377937007,1754615470467,-150.0,0.00038106,2]
[377937008,1754615470478,-150.0,0.00038107,2]
[377937009,1754615470491,-1642.0,0.00038126,20]
[377937010,1754615470502,-2412.04,0.00038136,30]
[377937011,1754615470518,-2412.04,0.00038136,30]
[377937012,1754615470530,-1000.0,0.00038199,2]
[377937013,1754615470541,-1000.0,0.00038199,2]
[377937014,1754615470552,-300.0,0.000382,16]
[377937015,1754615470564,-2188.92,0.000382,30]
[377937016,1754615470785,-150.0,0.00038202,120]
[377937017,1754615470796,-150.0,0.00038204,120]
[377937018,1754615470808,-1000.0,0.00038219,30]
[377937019,1754615470819,-1000.0,0.00038219,30]
[377937020,1754615470830,-444.56347485,0.00038219,30]
[377937021,1754615470841,-150.0,0.0003824,2]
[377937022,1754615470852,-193.9,0.0003824,60]
[377937023,1754615470863,-150.0,0.00038244,2]
[377937024,1754615470875,-150.0,0.00038253,2]
[377937025,1754615470888,-150.0,0.00038255,2]
[377937026,1754615470899,-150.0,0.00038256,120]
[377937027,1754615470911,-150.0,0.0003826,120]
[377937028,1754615470921,-150.0,0.00038272,2]
[377937029,1754615470935,-150.0,0.00038283,2]
[377937030,1754615470946,-150.0,0.00038288,2]
[377937031,1754615470957,-300.0,0.000383,16]
[377937032,1754615470968,-29537.36,0.000383,7]
[377937033,1754615470979,-2444.34,0.000383,7]
[377937034,1754615470990,-150.0,0.00038311,2]
[377937035,1754615471002,-150.0,0.00038336,2]
[377937036,1754615471013,-150.0,0.00038339,120]
[377937037,1754615471025,-5800.0,0.00038348,2]
[377937038,1754615471035,-150.0,0.00038348,2]
[377937039,1754615471046,-150.0,0.0003835,2]
[377937040,1754615471057,-2348.0727626,0.00038356,2]
[377937041,1754615471068,-150.0,0.00038356,12]
[377937042,1754615471079,-5800.0,0.00038356,2]
[377937043,1754615471092,-500.0,0.00038356,5]
[377937044,1754615471103,-200.51259437,0.00038356,5]
[377937045,1754615471115,-500.0,0.00038357,2]
[377937046,1754615471126,-300.0,0.00038361,2]
[377937047,1754615471137,-150.0,0.00038369,2]
[377937048,1754615471148,-610.69,0.0003837,2]
[377937049,1754615471159,-150.0,0.00038393,2]
[377937050,1754615471171,-2000.0,0.000384,2]
[377937051,1754615471189,-4462.61,0.000384,14]
[377937052,1754615471199,-150.0,0.00038404,2]
[377937053,1754615471210,-2412.04,0.0003841,30]
[377937054,1754615471221,-2412.04,0.0003841,30]
[377937055,1754615471231,-150.0,0.00038413,2]
[377937056,1754615471243,-173.68,0.00038427,2]
[377937057,1754615471253,-150.0,0.00038435,120]
[377937058,1754615471263,-150.0,0.00038435,2]
[377937059,1754615471274,-288.0,0.00038479,2]
[377937060,1754615471284,-150.0,0.00038502,2]
[377937061,1754615471296,-1642.0,0.00038519,20]
[377937062,1754615471306,-150.0,0.00038549,2]
[377937063,1754615471316,-150.0,0.00038568,2]
[377937064,1754615471327,-150.0,0.00038602,2]
[377937065,1754615471338,-211.71973057,0.00038631,2]
[377937066,1754615471350,-150.0,0.00038638,120]
[377937067,1754615471361,-500.0,0.00038669,2]
[377937068,1754615471372,-463.47187232,0.00038669,2]
[377937069,1754615471384,-178.628,0.00038678,7]
[377937070,1754615471395,-178.629,0.00038678,7]
[377937071,1754615471406,-178.629,0.00038678,7]
[377937072,1754615471418,-178.628,0.00038678,7]
[377937073,1754615471433,-178.628,0.00038678,7]
[377937074,1754615471446,-318.22,0.00038679,2]
[377937075,1754615471456,-133541.70349409,0.0003868,2]
[377937076,1754615471468,-2412.04,0.00038684,30]
[377937077,1754615471479,-2412.04,0.00038684,30]
[377937078,1754615471489,-150.0,0.00038697,120]
[377937079,1754615471503,-150.0,0.00038708,2]
[377937080,1754615471518,-791.88198458,0.00038713,2]
[377937081,1754615471529,-150.0,0.00038716,2]
[377937082,1754615471540,-150.0,0.00038726,2]
[377937083,1754615471550,-150.0,0.0003875,2]
[377937084,1754615471565,-150.0,0.0003876,2]
[377937085,1754615471577,-150.0,0.0003879,2]
[377937086,1754615471588,-559.67,0.00038799,2]
[377937087,1754615471601,-41174.64737976,0.000388,30]
[377937088,1754615471612,-1200.0,0.000388,14]
[377937089,1754615471623,-150.0,0.00038808,2]
[377937090,1754615471634,-150.0,0.00038866,2]
[377937091,1754615471645,-150.0,0.00038888,2]
[377937092,1754615471656,-151.0,0.00038899,14]
[377937093,1754615471667,-200.0,0.00038899,14]
[377937094,1754615471683,-200.0,0.00038899,14]
[377937095,1754615471696,-151.0,0.00038899,14]
[377937096,1754615471712,-241.44402639,0.00038899,14]
[377937097,1754615471724,-600.0,0.00038899,14]
[377937098,1754615471735,-160.0,0.00038899,14]
[377937099,1754615471746,-160.0,0.00038899,14]
[377937100,1754615471758,-160.0,0.00038899,14]
[377937101,1754615471768,-500.0,0.00038899,14]
[377937102,1754615471779,-160.0,0.00038899,14]
[377937103,1754615471791,-4496.15507419,0.00038899,14]
[377937104,1754615471802,-500.0,0.00038899,14]
[377937105,1754615471813,-160.0,0.00038899,14]
[377937106,1754615471824,-4662.51281194,0.00038899,14]
[377937107,1754615471834,-160.0,0.00038899,14]
[377937108,1754615471845,-500.0,0.00038899,14]
[377937109,1754615471856,-151.0,0.00038899,14]
[377937110,1754615471867,-4835.02578598,0.00038899,14]
[377937111,1754615471878,-160.0,0.00038899,14]
[377937112,1754615471888,-151.0,0.00038899,14]
[377937113,1754615471902,-500.0,0.00038899,14]
[377937114,1754615471916,-5013.92174006,0.00038899,14]
[377937115,1754615471928,-300.0,0.00038899,14]
[377937116,1754615471938,-160.0,0.00038899,14]
[377937117,1754615471949,-151.0,0.00038899,14]
[377937118,1754615471961,-5199.43684444,0.00038899,14]
[377937119,1754615471972,-500.0,0.00038899,14]
[377937120,1754615471983,-300.0,0.00038899,14]
[377937121,1754615471994,-160.0,0.00038899,14]
[377937122,1754615472004,-267.46074303,0.00038899,14]
[377937123,1754615472018,-226.29252911,0.00038899,14]
[377937124,1754615472029,-500.0,0.00038899,14]
[377937125,1754615472039,-500.0,0.00038899,14]
[377937126,1754615472050,-5391.81600769,0.00038899,14]
[377937127,1754615472061,-500.0,0.00038899,14]
[377937128,1754615472073,-277.35679052,0.00038899,14]
[377937129,1754615472085,-500.0,0.00038899,14]
[377937130,1754615472097,-500.0,0.00038899,14]
[377937131,1754615472108,-160.0,0.00038899,14]
[377937132,1754615472122,-2327.37272064,0.00038899,14]
[377937133,1754615472132,-400.0,0.00038899,14]
[377937134,1754615472143,-287.61899177,0.00038899,14]
[377937135,1754615472155,-500.0,0.00038899,14]
[377937136,1754615472166,-160.0,0.00038899,14]
[377937137,1754615472179,-500.0,0.00038899,14]
[377937138,1754615472189,-500.0,0.00038899,14]
[377937139,1754615472199,-298.26089446,0.00038899,14]
[377937140,1754615472210,-160.0,0.00038899,14]
[377937141,1754615472223,-500.0,0.00038899,14]
[377937142,1754615472234,-500.0,0.00038899,14]
[377937143,1754615472245,-500.0,0.00038899,14]
[377937144,1754615472256,-309.29654756,0.00038899,14]
[377937145,1754615472267,-500.0,0.00038899,14]
[377937146,1754615472279,-500.0,0.00038899,14]
[377937147,1754615472290,-500.0,0.00038899,14]
[377937148,1754615472302,-500.0,0.00038899,14]
[377937149,1754615472313,-500.0,0.00038899,14]
[377937150,1754615472326,-500.0,0.00038899,14]
[377937151,1754615472337,-500.0,0.00038899,14]
[377937152,1754615472347,-500.0,0.00038899,14]
[377937153,1754615472359,-320.74051982,0.00038899,14]
[377937154,1754615472370,-500.0,0.00038899,14]
[377937155,1754615472381,-500.0,0.00038899,14]
[377937156,1754615472392,-332.60791905,0.00038899,14]
[377937157,1754615472402,-500.0,0.00038899,14]
[377937158,1754615472414,-344.91441206,0.00038899,14]
[377937159,1754615472429,-500.0,0.00038899,14]
[377937160,1754615472442,-357.6762453,0.00038899,14]
[377937161,1754615472454,-500.0,0.00038899,14]
[377937162,1754615472465,-400.75445342,0.00038899,14]
[377937163,1754615472687,-370.91026638,0.00038899,14]
[377937164,1754615472699,-500.0,0.00038899,14]
[377937165,1754615472827,-384.63394623,0.00038899,14]
[377937166,1754615472841,-398.86540225,0.00038899,14]
[377937167,1754615472852,-311.82254393,0.00038899,14]
[377937168,1754615472864,-151.0,0.00038899,14]
[377937169,1754615472875,-151.0,0.00038899,14]
[377937170,1754615472887,-151.0,0.00038899,14]
[377937171,1754615472898,-151.0,0.00038899,14]
[377937172,1754615472909,-401.19111454,0.00038899,14]
[377937173,1754615472920,-151.0,0.00038899,14]
[377937174,1754615472935,-151.0,0.00038899,14]
[377937175,1754615472946,-300.0,0.00038899,14]
[377937176,1754615472959,-151.0,0.00038899,14]
[377937177,1754615472970,-151.0,0.00038899,14]
[377937178,1754615472981,-151.0,0.00038899,14]
[377937179,1754615472992,-151.0,0.00038899,14]
[377937180,1754615473003,-151.0,0.00038899,14]
[377937181,1754615473014,-151.0,0.00038899,14]
[377937182,1754615473026,-151.0,0.00038899,14]
[377937183,1754615473038,-151.0,0.00038899,14]
[377937184,1754615473049,-151.0,0.00038899,14]
[377937185,1754615473060,-151.0,0.00038899,14]
[377937186,1754615473071,-151.0,0.00038899,14]
[377937187,1754615473082,-151.0,0.00038899,14]
[377937188,1754615473093,-150.0,0.000389,2]
[377937189,1754615473104,-1500.0,0.000389,14]
[377937190,1754615473115,-53332.28,0.000389,14]
[377937191,1754615473127,-1642.0,0.00038912,20]
[377937192,1754615473139,-150.0,0.00038919,2]
[377937193,1754615473152,-154.88364059,0.00038931,2]
[377937194,1754615473163,-1527.60699293,0.00038934,2]
[377937195,1754615473178,-296.04432491,0.00038934,2]
[377937196,1754615473191,-769.30055647,0.00038934,7]
[377937197,1754615473204,-781.82793501,0.00038934,2]
[377937198,1754615473216,-2412.04,0.00038958,30]
[377937199,1754615473228,-2412.04,0.00038958,30]
[377937200,1754615473240,-150.0,0.00038965,2]
[377937201,1754615473253,-150.0,0.00038967,2]
[377937202,1754615473264,-24440.74531025,0.00038968,2]
[377937203,1754615473275,-165.13482285,0.0003897,2]
[377937204,1754615473288,-150.0,0.0003898,2]
[377937205,1754615473299,-150.0,0.00038983,2]
[377937206,1754615473311,-150.0,0.00038992,2]
[377937207,1754615473324,-150.0,0.00038997,2]
[377937208,1754615473335,-151.0,0.00038999,31]
[377937209,1754615473346,-150.0,0.00039,14]
[377937210,1754615473356,-457.55740054,0.00039,30]
[377937211,1754615473369,-211.58213282,0.00039,30]
[377937212,1754615473381,-300.0,0.00039,17]
[377937213,1754615473392,-842.27441137,0.00039,120]
[377937214,1754615473405,-842.27441137,0.00039,30]
[377937215,1754615473417,-2188.92,0.00039,30]
[377937216,1754615473432,-150.0,0.00039003,2]
[377937217,1754615473448,-169.12589163,0.00039008,15]
[377937218,1754615473460,-150.0,0.00039023,2]
[377937219,1754615473473,-394.58714974,0.00039024,2]
[377937220,1754615473484,-350.0,0.0003903,2]
[377937221,1754615473498,-350.0,0.0003903,120]
[377937222,1754615473510,-500.0,0.0003903,2]
[377937223,1754615473526,-500.0,0.0003903,2]
[377937224,1754615473538,-500.0,0.0003903,2]
[377937225,1754615473551,-500.0,0.0003903,2]
[377937226,1754615473565,-500.0,0.0003903,2]
[377937227,1754615473577,-630.50019428,0.0003903,2]
[377937228,1754615473588,-1932.53,0.0003903,120]
[377937229,1754615473601,-150.0,0.0003903,15]
[377937230,1754615473613,-559.67,0.0003903,2]
[377937231,1754615473625,-559.67,0.0003903,2]
[377937232,1754615473637,-559.67,0.0003903,2]
[377937233,1754615473650,-559.67,0.0003903,2]
[377937234,1754615473664,-559.67,0.0003903,2]
[377937235,1754615473679,-559.67,0.0003903,2]
[377937236,1754615473692,-559.67,0.0003903,2]
[377937237,1754615473705,-559.67,0.0003903,2]
[377937238,1754615473716,-559.67,0.0003903,2]
[377937239,1754615473728,-559.67,0.0003903,2]
[377937240,1754615473740,-559.67,0.0003903,2]
[377937241,1754615473751,-559.67,0.0003903,2]
[377937242,1754615473762,-559.67,0.0003903,2]
[377937243,1754615473775,-559.69,0.0003903,2]
[377937244,1754615473787,-150.0,0.00039031,2]
[377937245,1754615473798,-193.9,0.00039031,60]
[377937246,1754615473810,-20623.74045856,0.00039034,2]